fUSD/lending_fUSD_20250308
["ID","MTS","AMOUNT","RATE_DAILY","PERIOD"]
[355642005,1741421438838,-908.88,8.219e-05,2]
[355642006,1741421438850,-515.47702681,8.219e-05,2]
[355642007,1741421438860,-3124.63,8.219e-05,2]
[355642008,1741421438870,-3515.42,8.219e-05,2]
[355642009,1741421438881,-3551.7,8.219e-05,2]
[355642010,1741421438892,-500.0,8.219e-05,2]
[355642011,1741421438902,-654.02,8.219e-05,2]
[355642012,1741421438912,-560.31332206,8.219e-05,2]
[355642013,1741421438923,-1673.56,8.219e-05,2]
[355642014,1741421438934,-815.51,8.219e-05,2]
[355642015,1741421438943,-2325.53,8.219e-05,2]
[355642016,1741421438953,-584.88,8.219e-05,2]
[355642017,1741421438963,-1035.5,8.219e-05,2]
[355642018,1741421438972,-3902.3,8.219e-05,2]
[355642019,1741421438982,-500.0,8.219e-05,2]
[355642020,1741421438992,-2442.41,8.219e-05,2]
[355642021,1741421439002,-500.0,8.219e-05,2]
[355642022,1741421439013,-500.0,8.219e-05,2]
[355642023,1741421439023,-500.0,8.219e-05,2]
[355642024,1741421439032,-4955.57,8.219e-05,2]
[355642025,1741421439041,-2871.36,8.219e-05,2]
[355642026,1741421439052,-660.06,8.219e-05,2]
[355642027,1741421439061,-2568.92,8.219e-05,2]
[355642028,1741421439071,-500.0,8.219e-05,2]
[355642029,1741421439083,-2042.56,8.219e-05,2]
[355642030,1741421439093,-1251.24,8.219e-05,2]
[355642031,1741421439102,-1340.56,8.219e-05,2]
[355642032,1741421439112,-887.7,8.219e-05,2]
[355642033,1741421439122,-2182.52,8.219e-05,2]
[355642034,1741421439132,-500.0,8.219e-05,2]
[355642035,1741421439143,-1703.1,8.219e-05,2]
[355642036,1741421439155,-889.24,8.219e-05,2]
[355642037,1741421439166,-500.0,8.219e-05,2]
[355642038,1741421439177,-659.9,8.219e-05,2]
[355642039,1741421439187,-642.09,8.219e-05,2]
[355642040,1741421439197,-500.0,8.219e-05,2]
[355642041,1741421439207,-349.65012953,8.219e-05,2]
[355642042,1741421439218,-500.0,8.219e-05,2]
[355642043,1741421439227,-4150.61,8.219e-05,2]
[355642044,1741421439237,-2972.45,8.219e-05,2]
[355642045,1741421439247,-500.0,8.219e-05,2]
[355642046,1741421439260,-1251.52,8.219e-05,2]
[355642047,1741421439270,-500.0,8.219e-05,2]
[355642048,1741421439279,-6851.67419939,8.219e-05,2]
[355642049,1741421439292,-583.31580061,8.219e-05,2]
[355642050,1741421439301,-1037.74,8.219e-05,2]
[355642051,1741421439313,-924.43,8.219e-05,2]
[355642052,1741421439323,-867.86,8.219e-05,2]
[355642053,1741421439333,-4269.85,8.219e-05,2]
[355642054,1741421439343,-500.0,8.219e-05,2]
[355642055,1741421439353,-3381.52,8.219e-05,2]
[355642056,1741421439363,-500.0,8.219e-05,2]
[355642057,1741421439373,-2104.12629026,8.219e-05,2]
[355642058,1741421439387,-1778.80370974,8.219e-05,2]
[355642059,1741421439399,-1651.32,8.219e-05,2]
[355642060,1741421439408,-1934.27,8.219e-05,2]
[355642061,1741421439418,-2049.3,8.219e-05,2]
[355642062,1741421439428,-604.7,8.219e-05,2]
[355642063,1741421439437,-6599.56,8.219e-05,2]
[355642064,1741421439447,-1560.23,8.219e-05,2]
[355642065,1741421439456,-4031.08,8.219e-05,2]
[355642066,1741421439467,-1150.97,8.219e-05,2]
[355642067,1741421439476,-1034.64,8.219e-05,2]
[355642068,1741421439486,-8631.46,8.219e-05,2]
[355642069,1741421439497,-2140.4,8.219e-05,2]
[355642070,1741421439509,-3838.12831409,8.219e-05,2]
[355642071,1741421439520,-501.29659805,8.219e-05,2]
[355642073,1741421439614,-5751.34508786,8.219e-05,2]
[355642074,1741421439626,-508.42529559,8.219e-05,2]
[355642075,1741421439637,-747.0,8.219e-05,2]
[355642076,1741421439646,-1577.37,8.219e-05,2]
[355642077,1741421439656,-500.0,8.219e-05,2]
[355642078,1741421439665,-512.64424435,8.219e-05,2]
[355642079,1741421439675,-500.0,8.219e-05,2]
[355642080,1741421439685,-3779.62,8.219e-05,2]
[355642081,1741421439694,-500.0,8.219e-05,2]
[355642082,1741421439705,-292.3185544,8.219e-05,2]
[355642083,1741421439715,-500.0,8.219e-05,2]
[355642084,1741421439727,-504.40238186,8.219e-05,2]
[355642085,1741421439737,-5110.81,8.219e-05,2]
[355642086,1741421439748,-2414.59,8.219e-05,2]
[355642087,1741421439758,-3329.13,8.219e-05,2]
[355642088,1741421439767,-1257.02,8.219e-05,2]
[355642089,1741421439779,-514.94,8.219e-05,2]
[355642090,1741421439790,-1704.79,8.219e-05,2]
[355642091,1741421439799,-500.0,8.219e-05,2]
[355642092,1741421439808,-500.0,8.219e-05,2]
[355642093,1741421439817,-500.0,8.219e-05,2]
[355642094,1741421439826,-500.0,8.219e-05,2]
[355642095,1741421439835,-3566.45,8.219e-05,2]
[355642096,1741421439844,-500.0,8.219e-05,2]
[355642097,1741421439854,-500.0,8.219e-05,2]
[355642098,1741421439863,-2329.56,8.219e-05,2]
[355642099,1741421439872,-500.0,8.219e-05,2]
[355642100,1741421439882,-3860.4,8.219e-05,2]
[355642101,1741421439891,-500.0,8.219e-05,2]
[355642102,1741421439900,-19623.94,8.219e-05,2]
[355642103,1741421439910,-500.0,8.219e-05,2]
[355642104,1741421439919,-901.92,8.219e-05,2]
[355642105,1741421439930,-2033.6,8.219e-05,2]
[355642106,1741421439940,-2007.34,8.219e-05,2]
[355642107,1741421439950,-912.3,8.219e-05,2]
[355642108,1741421439960,-500.0,8.219e-05,2]
[355642109,1741421439970,-500.0,8.219e-05,2]
[355642110,1741421439980,-500.0,8.219e-05,2]
[355642111,1741421439990,-1942.02,8.219e-05,2]
[355642112,1741421439999,-2104.16,8.219e-05,2]
[355642113,1741421440009,-4138.88,8.219e-05,2]
[355642114,1741421440019,-500.0,8.219e-05,2]
[355642115,1741421440029,-500.0,8.219e-05,2]
[355642116,1741421440039,-14334.34,8.219e-05,2]
[355642117,1741421440049,-533.63300267,8.219e-05,2]
[355642118,1741421440059,-1211.6,8.219e-05,2]
[355642119,1741421440071,-1033.07,8.219e-05,2]
[355642120,1741421440081,-500.0,8.219e-05,2]
[355642121,1741421440092,-5251.55,8.219e-05,2]
[355642122,1741421440101,-500.0,8.219e-05,2]
[355642123,1741421440112,-500.0,8.219e-05,2]
[355642124,1741421440121,-2076.08,8.219e-05,2]
[355642125,1741421440131,-1725.35,8.219e-05,2]
[355642126,1741421440141,-1159.42,8.219e-05,2]
[355642127,1741421440152,-9132.85,8.219e-05,2]
[355642128,1741421440162,-500.0,8.219e-05,2]
[355642129,1741421440173,-536.71584897,8.219e-05,2]
[355642130,1741421440183,-500.0,8.219e-05,2]
[355642131,1741421440193,-2387.87,8.219e-05,2]
[355642132,1741421440203,-4426.32,8.219e-05,2]
[355642133,1741421440214,-1385.9,8.219e-05,2]
[355642134,1741421440224,-2575.22,8.219e-05,2]
[355642135,1741421440234,-917.25,8.219e-05,2]
[355642136,1741421440243,-3090.48,8.219e-05,2]
[355642137,1741421440252,-500.0,8.219e-05,2]
[355642138,1741421440263,-14535.63,8.219e-05,2]
[355642139,1741421440273,-1841.85,8.219e-05,2]
[355642140,1741421440284,-500.0,8.219e-05,2]
[355642141,1741421440294,-1332.74,8.219e-05,2]
[355642142,1741421440303,-566.9,8.219e-05,2]
[355642143,1741421440312,-500.0,8.219e-05,2]
[355642144,1741421440322,-1163.51,8.219e-05,2]
[355642145,1741421440331,-2521.56,8.219e-05,2]
[355642146,1741421440340,-844.13,8.219e-05,2]
[355642147,1741421440350,-3202.9,8.219e-05,2]
[355642148,1741421440361,-159.0,8.219e-05,3]
[355642149,1741421440370,-4575.2,8.219e-05,2]
[355642150,1741421440379,-500.0,8.219e-05,2]
[355642151,1741421440389,-1789.17,8.219e-05,2]
[355642152,1741421440398,-500.0,8.219e-05,2]
[355642153,1741421440407,-12377.34,8.219e-05,2]
[355642154,1741421440416,-1027.23,8.219e-05,2]
[355642155,1741421440426,-2547.17,8.219e-05,2]
[355642156,1741421440435,-500.0,8.219e-05,2]
[355642157,1741421440445,-803.37,8.219e-05,2]
[355642158,1741421440454,-1286.75,8.219e-05,2]
[355642159,1741421440463,-294.01572058,8.219e-05,2]
[355642160,1741421440820,-660.07913423,8.219e-05,2]
[355642161,1741421441043,-475.8703,8.219e-05,2]
[355642162,1741421441055,-1133.46484519,8.219e-05,2]
[355642163,1741421441066,-1133.69808047,8.219e-05,2]
[355642164,1741421441079,-944.47595189,8.219e-05,2]
[355642165,1741421441090,-358.81596764,8.219e-05,2]
[355642166,1741421441099,-902.52,8.219e-05,2]
[355642167,1741421441109,-501.3065484,8.219e-05,2]
[355642168,1741421441118,-536.55748385,8.219e-05,2]
[355642169,1741421441132,-326.71251615,8.219e-05,2]
[355642170,1741421441141,-1175.88,8.219e-05,2]
[355642171,1741421441152,-931.89,8.219e-05,2]
[355642172,1741421441162,-500.0,8.219e-05,2]
[355642173,1741421441172,-1469.32949875,8.219e-05,2]
[355642174,1741421441185,-985.23050125,8.219e-05,2]
[355642175,1741421441197,-540.95,8.219e-05,2]
[355642176,1741421441211,-220.15190655,8.219e-05,2]
[355642177,1741421441222,-279.84809345,8.219e-05,2]
[355642178,1741421441231,-4005.68,8.219e-05,2]
[355642179,1741421441241,-694.63222649,8.219e-05,2]
[355642180,1741421441252,-53.50777351,8.219e-05,2]
[355642181,1741421441263,-7452.31,8.219e-05,2]
[355642182,1741421441272,-3642.68418769,8.219e-05,2]
[355642183,1741421441283,-717.36185334,8.219e-05,2]
[355642194,1741421442594,-758.57759602,8.219e-05,2]
[355642197,1741421442651,-520.74992602,8.219e-05,2]
[355642198,1741421442664,-690.39655821,8.219e-05,2]
[355642199,1741421442676,-3018.50987872,8.219e-05,2]
[355642200,1741421442685,-360.61297038,8.219e-05,2]
[355642205,1741421443801,-281.75702962,8.219e-05,2]
[355642206,1741421443811,-356.79297038,8.219e-05,2]
[355642207,1741421443823,-619.33587721,8.219e-05,2]
[355642208,1741421443834,-148.39115241,8.219e-05,2]
[355642209,1741421443843,-1883.71,8.219e-05,2]
[355642210,1741421443852,-500.0,8.219e-05,2]
[355642211,1741421443862,-511.54843874,8.219e-05,2]
[355642212,1741421443874,-674.88,8.219e-05,2]
[355642213,1741421443884,-1000.0,8.219e-05,2]
[355642214,1741421443909,-199.94,8.219e-05,2]
[355642215,1741421443919,-250.0,8.219e-05,2]
[355642216,1741421443929,-1228.84,8.219e-05,2]
[355642217,1741421443939,-294.01,8.219e-05,2]
[355642218,1741421443948,-3612.69,8.219e-05,2]
[355642219,1741421443958,-545.8,8.219e-05,2]
[355642220,1741421443967,-299.95827251,8.323e-05,2]
[355642221,1741421443977,-159.79,8.349e-05,2]
[355642222,1741421443987,-348.98,8.35e-05,2]
[355642223,1741421443996,-155.46,8.401e-05,2]
[355642224,1741421444007,-5604.34388919,8.407e-05,2]
[355642225,1741421444016,-7728.65869637,8.472e-05,2]
[355642226,1741421444026,-852.88,8.493e-05,2]
[355642227,1741421444036,-500.0,8.493e-05,2]
[355642228,1741421444046,-500.0,8.493e-05,2]
[355642229,1741421444056,-500.0,8.493e-05,2]
[355642230,1741421444066,-500.0,8.493e-05,2]
[355642231,1741421444080,-500.0,8.493e-05,2]
[355642232,1741421444090,-789.68,8.493e-05,2]
[355642233,1741421444100,-500.0,8.493e-05,2]
[355642234,1741421444109,-508.92,8.493e-05,2]
[355642235,1741421444119,-550.85,8.493e-05,2]
[355642236,1741421444129,-264.22452415,8.493e-05,2]
[355642237,1741421444139,-687.89,8.493e-05,2]
[355642238,1741421444150,-856.71,8.493e-05,2]
[355642239,1741421444160,-500.0,8.493e-05,2]
[355642240,1741421444170,-500.0,8.493e-05,2]
[355642241,1741421444180,-500.0,8.493e-05,2]
[355642242,1741421444190,-796.08,8.493e-05,2]
[355642243,1741421444199,-717.6,8.493e-05,2]
[355642244,1741421444208,-500.0,8.493e-05,2]
[355642245,1741421444218,-500.0,8.493e-05,2]
[355642246,1741421444228,-561.77,8.493e-05,2]
[355642247,1741421444239,-524.23,8.493e-05,2]
[355642248,1741421444249,-814.29,8.493e-05,2]
[355642249,1741421444262,-532.18,8.493e-05,2]
[355642250,1741421444271,-634.61,8.493e-05,2]
[355642251,1741421444281,-858.45,8.493e-05,2]
[355642252,1741421444291,-500.0,8.493e-05,2]
[355642253,1741421444300,-500.0,8.493e-05,2]
[355642254,1741421444310,-982.14,8.493e-05,2]
[355642255,1741421444320,-915.58,8.493e-05,2]
[355642256,1741421444330,-500.0,8.493e-05,2]
[355642257,1741421444340,-770.88,8.493e-05,2]
[355642258,1741421444350,-1222.25,8.493e-05,2]
[355642259,1741421444359,-785.9,8.493e-05,2]
[355642260,1741421444369,-500.0,8.493e-05,2]
[355642261,1741421444378,-507.987984,8.493e-05,2]
[355642262,1741421444388,-662.71,8.493e-05,2]
[355642263,1741421444397,-500.0,8.493e-05,2]
[355642264,1741421444407,-610.25493905,8.493e-05,2]
[355642265,1741421444416,-564.12,8.493e-05,2]
[355642266,1741421444426,-850.86,8.493e-05,2]
[355642267,1741421444437,-500.0,8.493e-05,2]
[355642268,1741421444447,-500.0,8.493e-05,2]
[355642269,1741421444457,-500.0,8.493e-05,2]
[355642270,1741421444467,-500.0,8.493e-05,2]
[355642271,1741421444477,-565.47,8.493e-05,2]
[355642272,1741421444489,-500.0,8.493e-05,2]
[355642273,1741421444499,-879.41,8.493e-05,2]
[355642274,1741421444510,-500.0,8.493e-05,2]
[355642275,1741421444519,-640.74,8.493e-05,2]
[355642276,1741421444529,-1008.41,8.493e-05,2]
[355642277,1741421444539,-308.528107,8.493e-05,2]
[355642278,1741421444547,-714.08,8.493e-05,2]
[355642279,1741421444557,-1008.28,8.493e-05,2]
[355642280,1741421444568,-500.0,8.493e-05,2]
[355642281,1741421444578,-500.0,8.493e-05,2]
[355642282,1741421444587,-500.0,8.493e-05,2]
[355642283,1741421444598,-500.0,8.493e-05,2]
[355642284,1741421444607,-500.0,8.493e-05,2]
[355642285,1741421444616,-1329.09,8.493e-05,2]
[355642286,1741421444627,-500.0,8.493e-05,2]
[355642287,1741421444638,-500.0,8.493e-05,2]
[355642288,1741421444648,-500.0,8.493e-05,2]
[355642289,1741421444659,-886.35,8.493e-05,2]
[355642290,1741421444668,-377.30917743,8.493e-05,2]
[355642291,1741421444678,-632.34,8.493e-05,2]
[355642292,1741421444688,-635.24,8.493e-05,2]
[355642293,1741421444698,-500.0,8.493e-05,2]
[355642294,1741421444876,-500.0,8.493e-05,2]
[355642295,1741421444887,-500.0,8.493e-05,2]
[355642296,1741421444897,-666.22,8.493e-05,2]
[355642297,1741421444908,-541.89,8.493e-05,2]
[355642298,1741421444917,-1091.57,8.493e-05,2]
[355642299,1741421444926,-1116.15,8.493e-05,2]
[355642300,1741421444936,-500.0,8.493e-05,2]
[355642301,1741421444946,-759.52,8.493e-05,2]
[355642302,1741421444956,-726.05,8.493e-05,2]
[355642303,1741421444965,-561.44,8.493e-05,2]
[355642304,1741421444975,-858.87,8.493e-05,2]
[355642305,1741421444985,-1238.29,8.493e-05,2]
[355642306,1741421444995,-1607.45,8.493e-05,2]
[355642307,1741421445005,-935.0,8.493e-05,2]
[355642308,1741421445015,-526.28,8.493e-05,2]
[355642309,1741421445026,-500.0,8.493e-05,2]
[355642310,1741421445036,-500.0,8.493e-05,2]
[355642311,1741421445046,-729.75,8.493e-05,2]
[355642312,1741421445056,-651.55,8.493e-05,2]
[355642313,1741421445065,-500.0,8.493e-05,2]
[355642314,1741421445076,-1321.93889123,8.493e-05,2]
[355642321,1741421445696,-56.18110877,8.493e-05,2]
[355642322,1741421445706,-613.34557123,8.493e-05,2]
[355642323,1741421445724,-268.987887,8.493e-05,2]
[355642324,1741421445736,-73.57654177,8.493e-05,2]
[355642325,1741421445746,-245.30380693,8.493e-05,2]
[355642326,1741421445865,-319.51619307,8.493e-05,2]
[355642327,1741421445876,-233.16654805,8.493e-05,2]
[355642350,1741421552078,532.0,0.0001,120]
[355642353,1741421655718,-1300.0,8.9e-05,3]
[355642354,1741421688609,-150.0,9.562e-05,7]
[355642355,1741421688700,-5551.0,0.000104,5]
[355642357,1741421817710,2631.08,7.914e-05,2]
[355642358,1741421988232,159.79,7.876e-05,2]
[355642359,1741422354264,34700.80522531,6.94e-05,2]
[355642372,1741422365526,8239.19075961,8e-05,2]
[355642373,1741422425915,227.49,7.874e-05,2]
[355642396,1741422428463,300.0,7.8e-05,2]
[355642397,1741422430615,600.0,7.9e-05,2]
[355642398,1741422432744,900.0,8e-05,2]
[355642428,1741422608327,504.36127506,0.000201,120]
[355642434,1741422631745,-223.0862,8.119e-05,2]
[355642435,1741422631755,-744.33457249,8.119e-05,2]
[355642436,1741422631767,-334.60004339,8.119e-05,2]
[355642437,1741422631799,-706.92122751,8.119e-05,2]
[355642438,1741422631908,-264.75605661,8.119e-05,2]
[355642439,1741422631918,-313.7411,8.119e-05,2]
[355642440,1741422631929,-1000.0,8.119e-05,2]
[355642441,1741422631939,-236.43961449,8.218e-05,2]
[355642442,1741422631948,-500.0,8.218e-05,2]
[355642443,1741422631957,-500.0,8.218e-05,2]
[355642444,1741422631966,-387.5618898,8.218e-05,2]
[355642445,1741422631976,-600.0,8.218e-05,2]
[355642446,1741422631985,-917.3315791,8.218e-05,2]
[355642447,1741422631996,-187.91924319,8.218e-05,2]
[355642448,1741422632006,-150.0,8.218e-05,2]
[355642449,1741422632017,-5.37040939,8.219e-05,2]
[355642450,1741422632036,-833.90959061,8.219e-05,2]
[355642451,1741422632046,-166.09040939,8.219e-05,2]
[355642452,1741422632065,-721.1564232,8.219e-05,2]
[355642453,1741422632076,-24.15316741,8.219e-05,2]
[355642454,1741422632085,-517.11,8.219e-05,2]
[355642455,1741422632094,-381.27682559,8.219e-05,2]
[355642540,1741422637743,-118.72317441,8.219e-05,2]
[355642541,1741422637753,-500.0,8.219e-05,2]
[355642542,1741422637762,-253.47230545,8.219e-05,2]
[355642543,1741422637773,-500.0,8.219e-05,2]
[355642544,1741422637782,-500.0,8.219e-05,2]
[355642545,1741422637792,-500.0,8.219e-05,2]
[355642546,1741422637802,-500.0,8.219e-05,2]
[355642547,1741422637811,-500.0,8.219e-05,2]
[355642548,1741422637820,-539.18,8.219e-05,2]
[355642549,1741422637829,-500.0,8.219e-05,2]
[355642550,1741422637840,-500.0,8.219e-05,2]
[355642551,1741422637849,-655.32,8.219e-05,2]
[355642552,1741422637858,-500.0,8.219e-05,2]
[355642553,1741422637867,-500.0,8.219e-05,2]
[355642554,1741422637876,-673.26,8.219e-05,2]
[355642555,1741422637886,-500.0,8.219e-05,2]
[355642556,1741422637895,-500.0,8.219e-05,2]
[355642557,1741422637904,-500.0,8.219e-05,2]
[355642558,1741422637913,-16.47168925,8.219e-05,2]
[355642559,1741422637939,-387.20228309,8.219e-05,2]
[355642560,1741422637948,-277.49733892,8.219e-05,2]
[355642561,1741422637957,-500.0,8.219e-05,2]
[355642562,1741422637967,-502.94830182,8.219e-05,2]
[355642563,1741422637976,-500.0,8.219e-05,2]
[355642564,1741422637986,-500.0,8.219e-05,2]
[355642565,1741422637995,-500.0,8.219e-05,2]
[355642566,1741422638004,-697.0,8.219e-05,2]
[355642567,1741422638014,-500.0,8.219e-05,2]
[355642568,1741422638024,-502.59084184,8.219e-05,2]
[355642569,1741422638033,-502.10525125,8.219e-05,2]
[355642570,1741422638042,-500.0,8.219e-05,2]
[355642571,1741422638052,-500.0,8.219e-05,2]
[355642572,1741422638061,-665.54,8.219e-05,2]
[355642573,1741422638071,-511.33846359,8.219e-05,2]
[355642575,1741422638080,-510.4279021,8.219e-05,2]
[355642576,1741422638088,-1020.36,8.219e-05,2]
[355642578,1741422638098,-508.77300908,8.219e-05,2]
[355642579,1741422638107,-500.0,8.219e-05,2]
[355642580,1741422638116,-500.0,8.219e-05,2]
[355642581,1741422638125,-555.89,8.219e-05,2]
[355642582,1741422638135,-500.0,8.219e-05,2]
[355642583,1741422638145,-500.0,8.219e-05,2]
[355642584,1741422638154,-500.0,8.219e-05,2]
[355642585,1741422638164,-500.0,8.219e-05,2]
[355642586,1741422638174,-500.0,8.219e-05,2]
[355642587,1741422638183,-500.0,8.219e-05,2]
[355642588,1741422638192,-500.0,8.219e-05,2]
[355642589,1741422638202,-500.0,8.219e-05,2]
[355642590,1741422638211,-551.73,8.219e-05,2]
[355642591,1741422638220,-548.47633026,8.219e-05,2]
[355642592,1741422638230,-618.08,8.219e-05,2]
[355642593,1741422638240,-500.0,8.219e-05,2]
[355642594,1741422638249,-500.0,8.219e-05,2]
[355642595,1741422638258,-922.37,8.219e-05,2]
[355642596,1741422638268,-500.0,8.219e-05,2]
[355642597,1741422638279,-500.0,8.219e-05,2]
[355642598,1741422638288,-573.68063974,8.219e-05,2]
[355642599,1741422638297,-910.75,8.219e-05,2]
[355642600,1741422638307,-746.18,8.219e-05,2]
[355642601,1741422638316,-501.50999998,8.219e-05,2]
[355642602,1741422638325,-592.0,8.219e-05,2]
[355642603,1741422638334,-500.0,8.219e-05,2]
[355642604,1741422638344,-500.0,8.219e-05,2]
[355642605,1741422638353,-500.0,8.219e-05,2]
[355642606,1741422638363,-768.52,8.219e-05,2]
[355642607,1741422638372,-693.06,8.219e-05,2]
[355642608,1741422638381,-500.0,8.219e-05,2]
[355642609,1741422638390,-577.8,8.219e-05,2]
[355642610,1741422638400,-616.12,8.219e-05,2]
[355642611,1741422638409,-500.0,8.219e-05,2]
[355642612,1741422638418,-500.0,8.219e-05,2]
[355642613,1741422638427,-579.84658587,8.219e-05,2]
[355642614,1741422638437,-642.45,8.219e-05,2]
[355642615,1741422638446,-75.32244834,8.219e-05,2]
[355642616,1741422638463,-385.02367719,8.219e-05,2]
[355642617,1741422638481,-39.65387447,8.219e-05,2]
[355642618,1741422638491,-674.15140672,8.219e-05,2]
[355642619,1741422638502,-70.79859328,8.219e-05,2]
[355642620,1741422638511,-500.0,8.219e-05,2]
[355642621,1741422638521,-500.0,8.219e-05,2]
[355642622,1741422638531,-406.42140672,8.219e-05,2]
[355642623,1741422638544,-93.57859328,8.219e-05,2]
[355642624,1741422638554,-500.0,8.219e-05,2]
[355642625,1741422638563,-601.53,8.219e-05,2]
[355642626,1741422638573,-500.0,8.219e-05,2]
[355642627,1741422638583,-530.38,8.219e-05,2]
[355642628,1741422638592,-500.0,8.219e-05,2]
[355642629,1741422638602,-711.02,8.219e-05,2]
[355642630,1741422638611,-500.0,8.219e-05,2]
[355642631,1741422638621,-500.0,8.219e-05,2]
[355642632,1741422638630,-500.0,8.219e-05,2]
[355642633,1741422638639,-500.0,8.219e-05,2]
[355642634,1741422638649,-500.0,8.219e-05,2]
[355642635,1741422638659,-500.0,8.219e-05,2]
[355642636,1741422638668,-539.75,8.219e-05,2]
[355642637,1741422638677,-365.66296911,8.219e-05,2]
[355642638,1741422638687,-825.77,8.219e-05,2]
[355642639,1741422638697,-500.0,8.219e-05,2]
[355642640,1741422638706,-500.0,8.219e-05,2]
[355642641,1741422638715,-500.0,8.219e-05,2]
[355642642,1741422638724,-681.93,8.219e-05,2]
[355642643,1741422638734,-500.0,8.219e-05,2]
[355642644,1741422638743,-500.0,8.219e-05,2]
[355642645,1741422638752,-611.36,8.219e-05,2]
[355642646,1741422638761,-2112.37,8.219e-05,2]
[355642647,1741422638772,-946.31,8.219e-05,2]
[355642648,1741422638782,-779.96,8.219e-05,2]
[355642649,1741422638791,-500.0,8.219e-05,2]
[355642650,1741422638800,-17.56009547,8.219e-05,2]
[355642651,1741422638824,-491.91759704,8.219e-05,2]
[355642652,1741422638833,-522.73639858,8.219e-05,2]
[355642653,1741422638844,-88.24360142,8.219e-05,2]
[355642654,1741422638853,-508.01700034,8.219e-05,2]
[355642655,1741422638862,-500.0,8.219e-05,2]
[355642656,1741422638872,-66.83939829,8.219e-05,2]
[355642657,1741422638884,-441.93,8.219e-05,2]
[355642659,1741422639731,-297.35060171,8.219e-05,2]
[355642660,1741422639741,-348.50674952,8.219e-05,2]
[355642661,1741422639840,-383.39325048,8.219e-05,2]
[355642662,1741422639850,-770.31,8.219e-05,2]
[355642663,1741422639859,-500.0,8.219e-05,2]
[355642664,1741422639869,-833.32,8.219e-05,2]
[355642665,1741422639883,-327.98,8.219e-05,2]
[355642666,1741422639892,-818.43,8.219e-05,2]
[355642667,1741422639902,-500.0,8.219e-05,2]
[355642668,1741422639912,-500.0,8.219e-05,2]
[355642669,1741422639921,-500.0,8.219e-05,2]
[355642670,1741422639930,-628.32,8.219e-05,2]
[355642671,1741422639939,-717.06,8.219e-05,2]
[355642672,1741422639949,-500.0,8.219e-05,2]
[355642673,1741422639957,-579.65,8.219e-05,2]
[355642674,1741422639967,-698.39,8.219e-05,2]
[355642675,1741422639977,-169.01812185,8.219e-05,2]
[355642676,1741422639987,-818.53,8.219e-05,2]
[355642677,1741422639997,-1055.6314102,8.219e-05,2]
[355642678,1741422640009,-105.2885898,8.219e-05,2]
[355642679,1741422640020,-610.7,8.219e-05,2]
[355642680,1741422640030,-608.1,8.219e-05,2]
[355642681,1741422640040,-574.8,8.219e-05,2]
[355642682,1741422640049,-500.0,8.219e-05,2]
[355642683,1741422640059,-877.92,8.219e-05,2]
[355642684,1741422640068,-500.771462,8.219e-05,2]
[355642685,1741422640077,-500.0,8.219e-05,2]
[355642686,1741422640088,-500.0,8.219e-05,2]
[355642687,1741422640098,-514.66,8.219e-05,2]
[355642688,1741422640108,-500.0,8.219e-05,2]
[355642689,1741422640119,-1291.92,8.219e-05,2]
[355642690,1741422640129,-510.03,8.219e-05,2]
[355642691,1741422640139,-1300.63,8.219e-05,2]
[355642692,1741422640148,-1218.33,8.219e-05,2]
[355642693,1741422640158,-995.61,8.219e-05,2]
[355642694,1741422640168,-500.0,8.219e-05,2]
[355642695,1741422640177,-332.33120091,8.219e-05,2]
[355642696,1741422640188,-652.2,8.219e-05,2]
[355642697,1741422640198,-500.0,8.219e-05,2]
[355642698,1741422640207,-500.0,8.219e-05,2]
[355642699,1741422640217,-551.73,8.219e-05,2]
[355642700,1741422640226,-500.0,8.219e-05,2]
[355642701,1741422640236,-500.0,8.219e-05,2]
[355642702,1741422640245,-500.0,8.219e-05,2]
[355642703,1741422640255,-507.5825995,8.219e-05,2]
[355642704,1741422640264,-517.75,8.219e-05,2]
[355642705,1741422640275,-500.0,8.219e-05,2]
[355642707,1741422640284,-1277.68,8.219e-05,2]
[355642708,1741422640294,-725.92,8.219e-05,2]